bitfinex-derivatives/quotes_SOLF0:USTF0_20251006
["timestamp","ask_amount","ask_price","bid_price","bid_amount"]
[1759734651164,3.8482,233.81,233.76,4.74486774]
[1759734651367,103.86,233.82,233.77,8.59356774]
[1759734651669,103.86,233.82,233.78,7.69]
[1759734651965,111.04,233.82,233.78,7.69]
[1759734652969,7.18,233.81,233.78,7.69]
[1759734653965,114.888,233.82,233.76,12.43486774]
[1759734655167,114.888,233.82,233.77,4.74486774]
[1759734655472,114.888,233.82,233.76,12.43486774]
[1759734656167,107.708,233.82,233.77,4.74486774]
[1759734656369,107.708,233.82,233.77,12.43486774]
[1759734656568,7.18,233.81,233.77,12.43486774]
[1759734656868,107.708,233.82,233.77,12.43486774]
[1759734657269,7.18,233.81,233.77,12.43486774]
[1759734657664,107.708,233.82,233.77,12.43486774]
[1759734657864,7.18,233.81,233.77,12.43486774]
[1759734658060,107.708,233.82,233.77,12.43486774]
[1759734658260,7.18,233.81,233.77,12.43486774]
[1759734658773,107.708,233.82,233.77,12.43486774]
[1759734659270,7.18,233.81,233.77,12.43486774]
[1759734659569,107.708,233.82,233.77,12.43486774]
[1759734659871,7.18,233.81,233.77,12.43486774]
[1759734660073,107.708,233.82,233.77,12.43486774]
[1759734660966,7.18,233.81,233.77,12.43486774]
[1759734661370,107.708,233.82,233.77,4.74486774]
[1759734661569,7.18,233.81,233.77,4.74486774]
[1759734661765,7.18,233.81,233.77,12.43486774]
[1759734661966,107.708,233.82,233.77,12.43486774]
[1759734662268,7.18,233.81,233.77,12.43486774]
[1759734662470,107.708,233.82,233.77,12.43486774]
[1759734662769,7.18,233.81,233.77,12.43486774]
[1759734663271,107.708,233.82,233.77,12.43486774]
[1759734663670,7.18,233.81,233.77,12.43486774]
[1759734663862,107.708,233.82,233.77,12.43486774]
[1759734664880,7.18,233.81,233.76,4.74486774]
[1759734665066,1.90274716,233.79,233.73,4.74486774]
[1759734665368,3.8494,233.73,233.71,4.74486774]
[1759734665569,3.8494,233.73,233.69,4.74486774]
[1759734665570,7.18,233.72,233.69,4.74486774]
[1759734665867,7.18,233.7,233.68,4.74486774]
[1759734666071,7.18,233.68,233.66,4.74486774]
[1759734666266,105.22,233.67,233.61,4.74486774]
[1759734666565,7.18,233.66,233.6,4.74486774]
[1759734666968,114.30274716,233.67,233.6,4.74486774]
[1759734667169,112.4,233.67,233.6,12.43486774]
[1759734667767,112.4,233.67,233.6,7.69]
[1759734668171,7.18,233.64,233.58,4.74486774]
[1759734668679,7.18,233.64,233.57,4.74486774]
[1759734668971,112.4,233.64,233.58,4.74486774]
[1759734669161,112.4,233.64,233.56,8.43444872]
[1759734669162,112.4,233.64,233.56,13.17931646]
[1759734670574,105.24,233.65,233.57,12.43486774]
[1759734670772,105.24,233.66,233.57,12.43486774]
[1759734671175,105.24,233.66,233.57,7.69]
[1759734671474,105.24,233.66,233.57,11.542]
[1759734671873,7.18,233.65,233.57,7.69]
[1759734672683,11.0307,233.65,233.56,0.74444872]
[1759734673272,7.18,233.65,233.56,0.74444872]
[1759734673476,7.18,233.65,233.57,7.69]
[1759734674379,112.42,233.68,233.61,7.69]
[1759734674879,7.18,233.66,233.56,8.43444872]
[1759734676574,7.18,233.66,233.56,12.28664872]
[1759734677077,112.42,233.66,233.56,12.28664872]
[1759734677273,7.18,233.64,233.53,4.74486774]
[1759734677577,7.18,233.62,233.53,0.74506236]
[1759734678180,11.0313,233.62,233.53,0.74506236]
[1759734678476,7.18,233.62,233.53,0.74506236]
[1759734678683,7.18,233.62,233.5,4.74486774]
[1759734678886,7.18,233.62,233.5,5.49004177]
[1759734679177,7.48,233.58,233.5,0.74517403]
[1759734683385,7.48,233.56,233.48,11.0735]
[1759734684286,3.8524,233.55,233.48,7.22]
[1759734684586,7.48,233.54,233.44,7.22]
[1759734684985,7.48,233.52,233.44,7.96539749]
[1759734686080,7.48,233.52,233.44,11.81939749]
[1759734686682,7.48,233.52,233.46,3.8537]
[1759734686879,1.90274716,233.55,233.47,7.22]
[1759734687583,7.48,233.54,233.47,7.22]
[1759734689083,7.48,233.54,233.46,3.8537]
[1759734689783,11.3326,233.54,233.46,3.8537]
[1759734690480,11.3326,233.54,233.44,0.74539749]
[1759734690481,7.48,233.54,233.44,0.74539749]
[1759734690685,7.48,233.54,233.43,3.8543]
[1759734691082,7.48,233.49,233.41,0.74545338]
[1759734691283,7.48,233.47,233.31,7.22]
[1759734691482,7.48,233.47,233.36,0.74559712]
[1759734691687,7.48,233.47,233.36,7.96559712]
[1759734692387,9.38274716,233.47,233.36,7.96559712]
[1759734693582,11.3338,233.47,233.36,11.82109712]
[1759734693785,7.48,233.47,233.36,7.96559712]
[1759734693981,7.48,233.47,233.37,7.2]
[1759734695186,7.48,233.47,233.37,8.42132746]
[1759734695580,7.48,233.47,233.4,3.8548]
[1759734696286,7.48,233.47,233.37,7.2]
[1759734696685,7.48,233.47,233.38,3.8552]
[1759734696884,7.33,233.44,233.37,7.2]
[1759734698688,7.33,233.44,233.36,0.74559712]
[1759734698689,1.22132746,233.42,233.36,0.74559712]
[1759734698889,7.33,233.41,233.33,3.8558]
[1759734699079,7.33,233.41,233.32,7.94572494]
[1759734702290,7.33,233.41,233.35,7.2]
[1759734704291,7.33,233.41,233.35,11.0555]
[1759734705993,7.33,233.41,233.35,7.2]
[1759734707496,1.22132746,233.46,233.35,8.42132746]
[1759734707693,7.33,233.45,233.35,8.42132746]
[1759734708195,7.33,233.45,233.38,3.855]
[1759734708394,1.22132746,233.43,233.35,7.2]
[1759734708595,7.32,233.42,233.35,7.2]
[1759734709787,11.1745,233.42,233.32,0.74572494]
[1759734709987,11.1745,233.42,233.33,7.49]
[1759734710599,7.32,233.39,233.33,7.49]
[1759734713602,11.1751,233.39,233.33,7.49]
[1759734717302,11.1751,233.39,233.32,0.74572494]
[1759734719402,1.22132746,233.37,233.3,7.49]
[1759734719602,8.54132746,233.37,233.3,7.49]
[1759734720702,8.54132746,233.37,233.3,11.3464]
[1759734720902,8.54132746,233.37,233.3,7.49]
[1759734722810,12.39672746,233.37,233.3,7.49]
[1759734724912,7.32,233.37,233.3,7.49]
[1759734725915,1.22132746,233.39,233.3,7.49]
[1759734726918,1.22132746,233.39,233.33,3.8559]
[1759734727114,1.22132746,233.39,233.3,7.49]
[1759734727319,8.54132746,233.45,233.35,7.49]
[1759734727519,12.39542746,233.45,233.37,3.8552]
[1759734727920,12.39542746,233.45,233.35,7.49]
[1759734728119,12.39542746,233.45,233.37,3.8552]
[1759734728822,8.54132746,233.45,233.37,3.8552]
[1759734729320,8.54132746,233.45,233.35,7.49]
[1759734729519,7.32,233.43,233.35,7.49]
[1759734730421,7.32,233.43,233.36,3.8554]
[1759734731924,8.54132746,233.43,233.37,3.8552]
[1759734732925,7.32,233.43,233.37,3.8552]
[1759734734524,11.1744,233.43,233.35,11.3456]
[1759734734723,11.1744,233.43,233.35,7.49]
[1759734735023,11.1744,233.43,233.36,3.8554]
[1759734736126,3.8546,233.42,233.36,8.60026774]
[1759734737419,3.8546,233.42,233.35,12.23486774]
[1759734737625,1.22132746,233.41,233.35,12.23486774]
[1759734737827,8.94132746,233.41,233.35,12.23486774]
[1759734738922,12.79612746,233.41,233.35,12.23486774]
[1759734740030,8.94132746,233.41,233.35,16.09046774]
[1759734740230,1.22132746,233.44,233.36,4.74486774]
[1759734740431,8.94132746,233.44,233.37,7.82]
[1759734741333,8.94132746,233.47,233.37,12.56486774]
[1759734741629,8.94132746,233.47,233.36,1.22132746]
[1759734741630,8.94132746,233.47,233.39,7.82]
[1759734741932,8.94132746,233.47,233.39,12.56486774]
[1759734742232,12.79512746,233.47,233.4,3.8547]
[1759734742429,7.72,233.47,233.4,3.8547]
[1759734742730,8.94132746,233.47,233.4,3.8547]
[1759734744932,8.94132746,233.47,233.42,3.8545]
[1759734745134,8.94132746,233.47,233.43,7.82]
[1759734747230,7.72,233.46,233.43,7.82]
[1759734749429,1.22132746,233.47,233.41,7.82]
[1759734753538,7.72,233.43,233.38,4.74486774]
[1759734753739,8.94132746,233.41,233.37,12.56486774]
[1759734754042,8.94132746,233.41,233.37,7.82]
[1759734755030,7.72,233.41,233.37,7.82]
[1759734755938,11.7545,233.43,233.37,7.82]
[1759734756743,7.9,233.43,233.37,7.82]
[1759734756937,7.9,233.46,233.37,4.74486774]
[1759734757141,7.9,233.46,233.38,7.72]
[1759734757439,7.9,233.46,233.4,3.8547]
[1759734758844,7.9,233.46,233.41,3.8546]
[1759734759143,7.9,233.46,233.42,7.72]
[1759734759345,7.9,233.5,233.42,7.72]
[1759734760543,3.8536,233.48,233.42,7.72]
[1759734760846,11.7536,233.48,233.42,7.72]
[1759734765447,1.90914064,233.47,233.38,4.74486774]
[1759734765651,7.9,233.46,233.37,12.46486774]
[1759734766145,7.9,233.46,233.39,3.8548]
[1759734767750,3.854,233.45,233.38,4.74486774]
[1759734768050,7.24,233.44,233.38,4.74486774]
[1759734768549,3.854,233.45,233.39,7.95]
[1759734770552,9.14914064,233.48,233.39,16.54976774]
[1759734770553,3.8537,233.47,233.39,16.54976774]
[1759734771947,3.8537,233.47,233.41,7.95]
[1759734772147,7.24,233.48,233.41,7.95]
[1759734772348,3.8534,233.49,233.42,7.95]
[1759734773354,11.0934,233.49,233.42,7.95]
[1759734773549,11.0934,233.49,233.42,11.8044]
[1759734777858,7.24,233.55,233.42,12.69486774]
[1759734778056,7.24,233.55,233.44,7.95]
[1759734778456,7.24,233.52,233.45,3.854]
[1759734780457,7.24,233.52,233.44,7.95]
[1759734781050,7.24,233.56,233.47,4.74486774]
[1759734781252,7.24,233.59,233.48,7.95]
[1759734781455,7.24,233.59,233.51,3.8529]
[1759734781662,7.24,233.59,233.51,11.8029]
[1759734781855,7.24,233.59,233.51,7.95]
[1759734782056,47.72,233.62,233.54,3.8524]
[1759734782360,47.72,233.62,233.55,7.95]
[1759734785659,47.72,233.62,233.55,11.8022]
[1759734788766,47.72,233.62,233.58,7.95]
[1759734789061,7.24,233.62,233.57,3.852]
[1759734789264,7.24,233.62,233.58,7.95]
[1759734789454,7.24,233.62,233.57,3.852]
[1759734789661,11.0906,233.66,233.58,7.95]
[1759734789960,7.24,233.66,233.58,7.95]
[1759734791660,7.24,233.73,233.56,7.95]
[1759734791866,7.24,233.73,233.6,7.95]
[1759734792770,7.24,233.73,233.65,11.8006]
[1759734794164,7.24,233.74,233.61,11.8013]
[1759734794363,28.5,233.75,233.61,11.8013]
[1759734794569,7.24,233.69,233.61,7.95]
[1759734797671,7.24,233.69,233.61,11.8012]
[1759734800373,7.24,233.69,233.63,7.62]
[1759734804570,7.24,233.69,233.61,3.8513]
[1759734806579,3.8504,233.67,233.59,7.62]
[1759734806792,7.26,233.66,233.59,7.62]
[1759734807677,7.26,233.66,233.59,11.4716]
[1759734808185,7.26,233.66,233.59,7.62]
[1759734808372,11.1107,233.66,233.59,7.62]
[1759734808779,7.26,233.66,233.57,3.852]
[1759734809076,7.26,233.66,233.58,11.4717]
[1759734809478,7.26,233.66,233.58,7.62]
[1759734809978,7.26,233.66,233.58,11.4718]
[1759734810175,7.26,233.66,233.58,7.62]
[1759734810378,7.26,233.7,233.56,59.9236]
[1759734810582,7.26,233.7,233.57,7.62]
[1759734811275,9.16914064,233.7,233.57,7.62]
[1759734813086,7.26,233.7,233.57,7.62]
[1759734813683,7.26,233.7,233.63,7.62]
[1759734817194,8.47891759,233.7,233.63,7.62]
[1759734818084,3.8501,233.69,233.62,3.8511]
[1759734818294,8.62891759,233.68,233.62,3.8511]
[1759734818593,8.62891759,233.68,233.6,7.25]
[1759734818989,8.62891759,233.68,233.62,3.8511]
[1759734820488,1.21891759,233.7,233.6,7.25]
[1759734820885,7.41,233.69,233.62,3.8512]
[1759734821193,1.21891759,233.68,233.62,3.8512]
[1759734822189,7.41,233.67,233.62,3.8512]
[1759734822494,7.41,233.67,233.6,7.25]
[1759734823600,11.2605,233.67,233.6,7.25]
[1759734823893,11.2605,233.67,233.6,11.1014]
[1759734824695,7.41,233.67,233.61,3.8513]
[1759734825396,1.21891759,233.68,233.62,3.8511]
[1759734825601,1.21891759,233.68,233.59,7.25]
[1759734826596,11.26,233.7,233.63,3.8509]
[1759734826896,11.26,233.7,233.63,11.1009]
[1759734829101,7.41,233.7,233.64,3.8508]
[1759734829300,7.65,233.81,233.69,59.8892]
[1759734829604,7.65,233.85,233.76,7.82]
[1759734829994,7.65,233.85,233.76,12.56486774]
[1759734830203,7.65,233.85,233.76,7.82]
[1759734830500,7.65,233.85,233.77,1.21891759]
[1759734831204,7.65,233.85,233.76,9.03891759]
[1759734831801,11.4976,233.85,233.76,9.03891759]
[1759734833499,7.65,233.85,233.76,9.03891759]
[1759734834196,7.65,233.85,233.76,22.14070762]
[1759734834603,7.65,233.85,233.76,25.98950762]
[1759734835805,3.8476,233.84,233.76,25.98950762]
[1759734836008,7.65,233.83,233.76,22.14070762]
[1759734838309,7.65,233.83,233.77,3.8487]
[1759734838702,5.06621759,233.86,233.78,7.82]
[1759734839401,3.8473,233.86,233.78,7.82]
[1759734841004,7.65,233.87,233.78,11.6684]
[1759734842108,3.8473,233.86,233.79,3.8483]
[1759734842306,7.65,233.87,233.8,7.82]
[1759734843107,3.8473,233.86,233.8,7.82]
[1759734843312,7.65,233.87,233.8,7.82]
[1759734843607,3.8461,233.93,233.83,5.06651759]
[1759734843907,11.4961,233.93,233.84,7.82]
[1759734844413,7.65,233.93,233.84,11.6674]
[1759734844908,7.65,233.93,233.86,1.21891759]
[1759734845110,7.65,233.93,233.85,3.8473]
[1759734845310,7.65,233.93,233.85,5.06621759]
[1759734845507,7.65,233.93,233.87,11.667]
[1759734846712,7.65,233.93,233.89,7.82]
[1759734847413,7.65,233.95,233.89,7.82]
[1759734848609,8.86891759,233.95,233.85,7.82]
[1759734849211,3.8459,233.94,233.85,11.6673]
[1759734850314,7.65,234.04,233.91,1.21891759]
[1759734850518,7.65,234.04,233.95,7.82]
[1759734850813,7.65,234.04,233.95,9.03891759]
[1759734851603,7.65,234.04,233.95,7.82]
[1759734852909,3.8445,234.03,233.95,7.82]
[1759734853111,7.65,234.04,233.92,3.8463]
[1759734853412,7.65,234.01,233.92,3.8463]
[1759734853714,11.4948,234.01,233.92,3.8463]
[1759734856711,7.65,233.95,233.86,9.03891759]
[1759734857017,1.21891759,233.93,233.86,7.82]
[1759734857709,7.65,233.95,233.86,7.82]
[1759734858218,8.86891759,233.95,233.86,7.82]
[1759734858517,7.65,233.95,233.87,3.8471]
[1759734863015,7.65,233.95,233.86,7.82]
[1759734863320,3.846,233.94,233.86,7.82]
[1759734864120,7.65,233.95,233.86,7.82]
[1759734865020,8.86891759,233.95,233.86,7.82]
[1759734865714,8.86891759,233.95,233.86,11.6671]
[1759734867218,7.65,233.95,233.87,11.047]
[1759734867421,8.86891759,233.95,233.88,7.2]
[1759734870820,8.86891759,233.95,233.89,3.8468]
[1759734871827,1.21891759,233.98,233.88,7.2]
[1759734872229,1.21891759,233.98,233.88,8.41891759]
[1759734872930,1.21891759,233.98,233.91,7.2]
[1759734874726,7.17,234.06,233.93,59.8287]
[1759734874926,7.17,234.06,233.96,7.84]
[1759734875130,7.17,234.06,233.96,9.05891759]
[1759734876136,7.17,234.06,234.0,7.84]
[1759734876725,1.21891759,234.09,234.03,7.84]
[1759734876931,1.21891759,234.1,234.03,7.84]
[1759734877131,7.17,234.11,234.03,7.84]
[1759734877836,7.17,234.11,234.01,3.8446]
[1759734878030,1.89794388,234.14,233.95,59.8229]
[1759734878031,7.17,234.09,233.99,7.84]
[1759734879235,11.0136,234.09,233.99,7.84]
[1759734879533,7.17,234.09,233.99,7.84]
[1759734880431,7.17,234.09,233.99,20.4598675]
[1759734880637,7.17,234.09,233.99,24.3048675]
[1759734882737,11.0135,234.09,233.99,24.3048675]
[1759734885141,7.17,234.09,233.99,24.3048675]
[1759734887042,3.8436,234.09,233.99,24.3048675]
[1759734887239,7.17,234.08,233.99,24.3048675]
[1759734888040,7.17,234.08,234.0,7.42]
[1759734888447,7.29,234.12,234.0,7.42]
[1759734889748,7.29,234.12,234.04,7.42]
[1759734890846,11.1331,234.12,234.04,7.42]
[1759734892449,11.1331,234.12,234.04,11.2643]
[1759734893051,11.1331,234.12,234.04,7.42]
[1759734894253,11.1331,234.12,234.04,11.2643]
[1759734895151,7.29,234.1,234.04,7.42]
[1759734899959,11.1334,234.1,234.04,7.42]
[1759734901154,7.29,234.14,234.06,7.42]
[1759734901755,7.29,234.14,234.09,3.8434]
[1759734902157,7.29,234.14,234.04,5.47092041]
[1759734902358,3.8421,234.18,234.11,7.42]
[1759734902560,7.29,234.18,234.11,7.42]
[1759734902760,3.8423,234.17,234.11,7.42]
[1759734902950,7.29,234.18,234.11,7.42]
[1759734904257,7.29,234.18,234.11,11.263]
[1759734904663,7.29,234.18,234.11,7.42]
[1759734906662,11.1318,234.2,234.11,11.263]
[1759734906864,7.29,234.2,234.11,7.42]
[1759734907063,3.842,234.18,234.11,7.42]
[1759734907362,7.29,234.2,234.11,7.42]
[1759734908561,7.29,234.2,234.13,3.8427]
[1759734908766,7.29,234.2,234.14,7.42]
[1759734909663,7.29,234.2,234.14,11.2625]
[1759734910262,97.8012,234.23,234.14,3.8425]
[1759734910460,97.8012,234.23,234.15,7.42]
[1759734911565,7.29,234.21,234.15,7.42]
[1759734912569,11.1316,234.21,234.15,7.42]
[1759734914872,3.8418,234.2,234.15,7.42]
[1759734915070,7.29,234.19,234.12,3.57297653]
[1759734916073,11.1319,234.19,234.12,7.41587653]
[1759734916268,11.1319,234.19,234.13,7.42]
[1759734916865,3.8423,234.16,234.12,3.57297653]
[1759734917066,3.8423,234.16,234.11,10.99297653]
[1759734917067,7.29,234.15,234.11,10.99297653]
[1759734917565,7.29,234.15,234.11,3.57297653]
[1759734917769,7.29,234.15,234.12,10.99297653]
[1759734918368,11.4323,234.16,234.13,7.61]
[1759734918564,7.59,234.16,234.13,7.61]
[1759734919669,1.89794388,234.21,234.11,3.57297653]
[1759734919670,7.59,234.2,234.11,3.57297653]
[1759734919974,7.59,234.2,234.12,3.57297653]
[1759734920173,3.8423,234.17,234.12,3.57297653]
[1759734920378,7.59,234.16,234.12,11.18297653]
[1759734920674,3.8423,234.17,234.12,11.18297653]
[1759734921069,7.59,234.16,234.12,11.18297653]
[1759734921977,1.89794388,234.21,234.12,11.18297653]
[1759734922374,11.4324,234.16,234.12,11.18297653]
[1759734923076,7.59,234.15,234.12,11.18297653]
[1759734927080,7.59,234.15,234.12,15.02587653]
[1759734927579,7.59,234.15,234.12,7.41587653]
[1759734927780,7.59,234.15,234.13,7.61]
[1759734928781,7.59,234.2,234.13,11.4527]
[1759734928970,7.59,234.2,234.13,3.57297653]
[1759734929175,7.59,234.2,234.14,11.18297653]
[1759734929579,7.59,234.22,234.14,3.57297653]
[1759734929784,3.8412,234.23,234.14,3.57297653]
[1759734929984,7.59,234.22,234.14,3.57297653]
[1759734930382,11.4314,234.22,234.15,3.8424]
[1759734931188,7.59,234.2,234.14,3.57297653]
[1759734931781,3.8416,234.21,234.15,3.57297653]
[1759734931981,7.59,234.2,234.15,3.57297653]
[1759734932181,7.59,234.2,234.14,7.41547653]
[1759734932382,3.8416,234.21,234.15,3.57297653]
[1759734932578,7.59,234.2,234.15,3.57297653]
[1759734932783,7.59,234.2,234.15,11.18297653]
[1759734933080,11.4316,234.21,234.15,11.18297653]
[1759734933883,7.74,234.2,234.15,3.57297653]
[1759734934083,3.8416,234.21,234.15,3.57297653]
[1759734934284,7.74,234.2,234.15,3.57297653]
[1759734934886,3.8418,234.2,234.15,3.57297653]
[1759734935080,7.74,234.19,234.15,11.38297653]
[1759734936086,7.74,234.19,234.16,7.81]
[1759734936282,3.8418,234.2,234.15,3.57297653]
[1759734936481,7.74,234.19,234.16,7.81]
[1759734936686,7.74,234.18,234.15,3.57297653]
[1759734937082,3.8419,234.19,234.15,3.57297653]
[1759734937387,11.5816,234.21,234.15,3.57297653]
[1759734937583,11.5816,234.21,234.16,7.81]
[1759734937784,11.5816,234.21,234.17,7.81]
[1759734938180,11.5818,234.2,234.17,7.81]
[1759734938783,3.842,234.18,234.15,11.38297653]
[1759734938989,3.842,234.18,234.16,7.81]
[1759734939383,3.842,234.18,234.16,11.38297653]
[1759734939581,11.582,234.18,234.15,3.57297653]
[1759734939988,7.74,234.17,234.15,3.57297653]
[1759734940485,3.842,234.18,234.16,3.57297653]
[1759734941084,3.842,234.18,234.16,11.38297653]
[1759734941988,59.7401,234.28,234.16,3.57297653]
[1759734942187,8.95366026,234.23,234.16,11.38297653]
[1759734942588,8.95366026,234.23,234.17,3.57297653]
[1759734942889,7.74,234.23,234.17,3.57297653]
[1759734943089,8.95366026,234.23,234.17,3.57297653]
[1759734943590,8.95366026,234.23,234.16,7.81]
[1759734943591,1.21366026,234.23,234.18,3.57297653]
[1759734943884,7.74,234.22,234.18,3.57297653]
[1759734944284,1.21366026,234.23,234.18,3.57297653]
[1759734944591,8.95366026,234.24,234.19,3.57297653]
[1759734944893,7.74,234.23,234.19,11.38297653]
[1759734945188,3.8415,234.22,234.19,11.38297653]
[1759734945380,1.21366026,234.24,234.19,3.57297653]
[1759734945790,7.74,234.23,234.19,3.57297653]
[1759734945992,1.21366026,234.24,234.19,3.57297653]
[1759734946290,3.8416,234.21,234.19,3.57297653]
[1759734946492,7.74,234.23,234.19,3.57297653]
[1759734946694,1.21366026,234.24,234.19,3.57297653]
[1759734947083,7.74,234.22,234.19,3.57297653]
[1759734947392,3.8412,234.23,234.19,3.57297653]
[1759734947393,8.95366026,234.26,234.19,11.38297653]
[1759734947693,1.21366026,234.25,234.2,3.57297653]
[1759734947887,7.39,234.24,234.2,3.57297653]
[1759734948194,1.21366026,234.25,234.21,3.57297653]
[1759734948493,8.60366026,234.22,234.21,3.57297653]
[1759734949689,8.60366026,234.22,234.2,3.57297653]
[1759734949690,3.8415,234.21,234.2,3.57297653]
[1759734949885,11.2315,234.21,234.2,3.57297653]
[1759734950090,7.39,234.2,234.19,3.57297653]
[1759734950291,8.60366026,234.2,234.19,3.57297653]
[1759734951790,67.1578,234.17,234.13,0.53636863]
[1759734951994,1.21366026,234.14,234.01,7.29]
[1759734952297,8.60366026,234.1,234.01,7.29]
[1759734952493,3.8438,234.08,234.01,7.29]
[1759734953594,8.60366026,234.1,234.01,7.29]
[1759734953795,59.7779,234.13,233.96,310.82]
[1759734953796,8.60366026,234.04,233.96,7.29]
[1759734954998,3.8448,234.02,233.96,7.29]
[1759734955200,8.60366026,234.01,233.96,7.29]
[1759734955398,1.21366026,233.98,233.9,3.8464]
[1759734955603,1.21366026,233.99,233.94,7.29]
[1759734955795,1.21366026,233.99,233.91,7.29]
[1759734956291,1.21366026,234.01,233.93,7.29]
[1759734957096,1.21366026,234.04,233.95,7.29]
[1759734957394,97.59366026,234.04,233.95,7.29]
[1759734957793,104.98366026,234.04,233.95,7.29]
[1759734958197,8.60366026,234.04,233.95,7.29]
[1759734958497,8.60366026,234.01,233.95,7.29]
[1759734959994,1.21366026,233.98,233.95,7.29]
[1759734960194,8.60366026,233.98,233.91,11.1364]
[1759734960396,164.5595,234.05,233.88,3.8468]
[1759734960397,1.21366026,233.95,233.88,3.8468]
[1759734960788,1.21366026,233.97,233.9,3.8466]
[1759734961394,25.11,234.01,233.92,3.8462]
[1759734961589,1.21366026,234.03,233.93,7.29]
[1759734961790,1.21366026,234.06,233.96,7.29]
[1759734962201,1.21366026,234.03,233.96,7.29]
[1759734962401,1.21366026,234.0,233.92,7.29]
[1759734962707,1.21366026,234.0,233.92,11.1361]
[1759734963198,7.39,234.02,233.92,11.1361]
[1759734963401,1.21366026,234.0,233.92,11.1361]
[1759734963799,7.39,233.96,233.92,7.29]
[1759734963996,1.21366026,233.99,233.9,7.29]
[1759734964603,1.21366026,233.99,233.91,3.8464]
[1759734966204,7.39,234.0,233.91,3.8464]
[1759734966501,8.60366026,234.0,233.92,7.29]
[1759734966906,1.21366026,233.97,233.92,7.29]
[1759734967204,7.39,233.96,233.87,7.29]
[1759734967403,1.21366026,233.94,233.87,11.137]
[1759734967907,8.60366026,233.96,233.87,7.29]
[1759734968101,7.39,233.96,233.87,7.29]
[1759734968302,8.60366026,233.96,233.87,7.29]
[1759734968506,1.21366026,234.02,233.93,7.29]
[1759734968798,7.39,234.04,233.96,7.29]
[1759734969305,7.39,234.04,233.96,11.1356]
[1759734969911,1.21366026,234.03,233.96,11.1356]
[1759734970213,1.21366026,234.03,233.99,7.29]
[1759734970897,310.98,234.08,234.0,11.135]
[1759734971297,310.98,234.08,233.99,7.29]
[1759734971498,106.01366026,234.11,234.02,7.29]
[1759734972803,109.85696026,234.11,234.02,7.29]
[1759734973508,1.21366026,234.11,234.03,1.21366026]
[1759734973802,1.21366026,234.11,234.04,7.29]
[1759734974704,7.39,234.13,234.04,7.29]
[1759734975109,1.21366026,234.15,234.04,7.29]
[1759734977505,1.21366026,234.15,234.04,11.1341]
[1759734978011,1.19366026,234.15,234.04,11.1341]
[1759734978201,1.19366026,234.15,234.05,1.21366026]
[1759734978508,1.19366026,234.15,234.06,7.59]
[1759734979306,1.19366026,234.15,234.06,11.434]
[1759734979503,112.17,234.17,234.07,7.59]
[1759734979708,112.17,234.17,234.08,1.21366026]
[1759734980005,7.39,234.17,234.09,7.59]
[1759734981407,8.60366026,234.17,234.09,7.59]
[1759734982214,3.8424,234.16,234.05,7.59]
[1759734982515,1.21366026,234.11,234.05,7.59]
[1759734984411,7.92,234.14,234.05,7.59]
[1759734984919,7.92,234.14,234.06,1.21366026]